[Event "Titled Tuesday Blitz October 11 Early 2022"]
[White "Rosen, Eric"]
[Black "Boros, Denes"]
[WhiteFideId "2032562"]
[BlackFideId "722340"]
[WhiteElo "2362"]
[BlackElo "2464"]
[Result "1-0"]
[Round "03"]
[TimeControl "180+1"]
[Date "2022.10.12"]
[WhiteClock "0:00:03"]
[BlackClock "0:00:10"]

1. d4 {[%clk 0:03:00]}  Nc6 {[%clk 0:03:00]} 2. d5 {[%clk 0:02:58]}  Nb8 {[%clk 0:03:00]} 3. e4 {[%clk 0:02:57]}  c6 {[%clk 0:03:01]} 4. c4 {[%clk 0:02:56]}  g6 {[%clk 0:03:01]} 5. Nc3 {[%clk 0:02:52]}  Bg7 {[%clk 0:03:01]} 6. f4 {[%clk 0:02:51]}  d6 {[%clk 0:03:00]} 7. Nf3 {[%clk 0:02:51]}  Qb6 {[%clk 0:02:56]} 8. Qc2 {[%clk 0:02:38]}  Bg4 {[%clk 0:02:52]} 9. Be2 {[%clk 0:02:21]}  Na6 {[%clk 0:02:40]} 10. h3 {[%clk 0:02:04]}  Bxf3 {[%clk 0:02:37]} 11. Bxf3 {[%clk 0:02:04]}  Bd4 {[%clk 0:02:10]} 12. a3 {[%clk 0:01:59]}  Nc5 {[%clk 0:02:06]} 13. b4 {[%clk 0:01:52]}  Nd7 {[%clk 0:01:58]} 14. Rb1 {[%clk 0:01:52]}  Ngf6 {[%clk 0:01:50]} 15. Qd3 {[%clk 0:01:41]}  Bf2+ {[%clk 0:01:46]} 16. Ke2 {[%clk 0:01:36]}  Qd4 {[%clk 0:01:37]} 17. Rf1 {[%clk 0:01:30]}  Qxd3+ {[%clk 0:01:35]} 18. Kxd3 {[%clk 0:01:31]}  Bb6 {[%clk 0:01:33]} 19. e5 {[%clk 0:01:18]}  dxe5 {[%clk 0:01:33]} 20. dxc6 {[%clk 0:01:18]}  bxc6 {[%clk 0:01:22]} 21. c5 {[%clk 0:01:18]}  Bc7 {[%clk 0:01:18]} 22. Bxc6 {[%clk 0:01:17]}  O-O-O {[%clk 0:01:12]} 23. Kc2 {[%clk 0:00:58]}  exf4 {[%clk 0:01:13]} 24. Bxf4 {[%clk 0:00:59]}  Bxf4 {[%clk 0:01:13]} 25. Rxf4 {[%clk 0:01:00]}  Ne5 {[%clk 0:01:13]} 26. Bb5 {[%clk 0:00:58]}  Nd5 {[%clk 0:01:10]} 27. Re4 {[%clk 0:00:50]}  f6 {[%clk 0:01:05]} 28. Ba6+ {[%clk 0:00:36]}  Kb8 {[%clk 0:01:05]} 29. Rbe1 {[%clk 0:00:31]}  Nc7 {[%clk 0:01:00]} 30. Bf1 {[%clk 0:00:28]}  Rd7 {[%clk 0:00:46]} 31. Rd1 {[%clk 0:00:24]}  Rxd1 {[%clk 0:00:32]} 32. Nxd1 {[%clk 0:00:25]}  Ne6 {[%clk 0:00:30]} 33. Nb2 {[%clk 0:00:14]}  Rd8 {[%clk 0:00:30]} 34. Bc4 {[%clk 0:00:12]}  Nd4+ {[%clk 0:00:29]} 35. Kc3 {[%clk 0:00:11]}  Nf5 {[%clk 0:00:27]} 36. g4 {[%clk 0:00:11]}  Nh4 {[%clk 0:00:25]} 37. a4 {[%clk 0:00:09]}  Nhf3 {[%clk 0:00:22]} 38. b5 {[%clk 0:00:07]}  h5 {[%clk 0:00:21]} 39. gxh5 {[%clk 0:00:07]}  gxh5 {[%clk 0:00:22]} 40. c6 {[%clk 0:00:07]}  Kc7 {[%clk 0:00:22]} 41. a5 {[%clk 0:00:08]}  a6 {[%clk 0:00:22]} 42. b6+ {[%clk 0:00:07]}  Kxc6 {[%clk 0:00:22]} 43. Bxa6 {[%clk 0:00:08]}  f5 {[%clk 0:00:17]} 44. Re3 {[%clk 0:00:07]}  Ra8 {[%clk 0:00:14]} 45. Be2 {[%clk 0:00:07]}  Rxa5 {[%clk 0:00:12]} 46. Bxf3+ {[%clk 0:00:06]}  Nxf3 {[%clk 0:00:12]} 47. Nc4 {[%clk 0:00:04]}  Rc5 {[%clk 0:00:08]} 48. Rxf3 {[%clk 0:00:04]}  Kb5 {[%clk 0:00:09]} 49. Rf4 {[%clk 0:00:03]}  Rxc4+ {[%clk 0:00:10]} 50. Rxc4 {[%clk 0:00:03]} 1-0


[Site "https://www.chess.com"]

[Event "Titled Tuesday Blitz October 11 Early 2022"]
[White "Rosenberg, Evan S"]
[Black "Aizpurua, Patrick Emilio"]
[WhiteFideId "2019299"]
[BlackFideId "6600522"]
[WhiteElo "2418"]
[BlackElo "2378"]
[Result "1-0"]
[Round "03"]
[TimeControl "180+1"]
[Date "2022.10.12"]
[WhiteClock "0:00:07"]
[BlackClock "0:00:14"]

1. e4 {[%clk 0:03:00]}  e5 {[%clk 0:02:56]} 2. Nf3 {[%clk 0:02:56]}  Nc6 {[%clk 0:02:55]} 3. Bb5 {[%clk 0:02:51]}  g6 {[%clk 0:02:53]} 4. d4 {[%clk 0:02:45]}  exd4 {[%clk 0:02:52]} 5. Bg5 {[%clk 0:02:39]}  f6 {[%clk 0:02:42]} 6. Bh4 {[%clk 0:02:25]}  Qe7 {[%clk 0:02:27]} 7. O-O {[%clk 0:02:21]}  d6 {[%clk 0:02:15]} 8. Nxd4 {[%clk 0:02:17]}  Bd7 {[%clk 0:02:15]} 9. Nc3 {[%clk 0:02:09]}  Qe5 {[%clk 0:01:54]} 10. Nf3 {[%clk 0:01:07]}  Qe6 {[%clk 0:01:31]} 11. Nd5 {[%clk 0:01:04]}  O-O-O {[%clk 0:01:31]} 12. Bxc6 {[%clk 0:00:56]}  Bxc6 {[%clk 0:01:30]} 13. Nd4 {[%clk 0:00:56]}  Qf7 {[%clk 0:01:27]} 14. Nxc6 {[%clk 0:00:55]}  bxc6 {[%clk 0:01:28]} 15. Nb4 {[%clk 0:00:52]}  Kd7 {[%clk 0:01:23]} 16. c4 {[%clk 0:00:42]}  Qxc4 {[%clk 0:01:13]} 17. a3 {[%clk 0:00:40]}  Ne7 {[%clk 0:01:08]} 18. Bxf6 {[%clk 0:00:36]}  Rg8 {[%clk 0:01:05]} 19. Bxe7 {[%clk 0:00:36]}  Bxe7 {[%clk 0:01:06]} 20. Rc1 {[%clk 0:00:35]}  Qe6 {[%clk 0:00:57]} 21. Nxc6 {[%clk 0:00:32]}  Qxe4 {[%clk 0:00:44]} 22. Re1 {[%clk 0:00:29]}  Qxe1+ {[%clk 0:00:33]} 23. Qxe1 {[%clk 0:00:29]}  Bf6 {[%clk 0:00:33]} 24. Qb4 {[%clk 0:00:20]}  Rde8 {[%clk 0:00:31]} 25. g3 {[%clk 0:00:19]}  Re6 {[%clk 0:00:27]} 26. Nxa7 {[%clk 0:00:15]}  Rge8 {[%clk 0:00:26]} 27. Qb5+ {[%clk 0:00:14]}  Ke7 {[%clk 0:00:26]} 28. Rxc7+ {[%clk 0:00:14]}  Kf8 {[%clk 0:00:26]} 29. Rxh7 {[%clk 0:00:12]}  Kg8 {[%clk 0:00:26]} 30. Qb7 {[%clk 0:00:11]}  Be7 {[%clk 0:00:25]} 31. Qd7 {[%clk 0:00:07]}  Re1+ {[%clk 0:00:24]} 32. Kg2 {[%clk 0:00:07]}  Rd8 {[%clk 0:00:23]} 33. Qh3 {[%clk 0:00:03]}  Bf6 {[%clk 0:00:21]} 34. Nc6 {[%clk 0:00:03]}  Rde8 {[%clk 0:00:18]} 35. Rc7 {[%clk 0:00:02]}  Bg7 {[%clk 0:00:18]} 36. Rc8 {[%clk 0:00:02]}  Rxc8 {[%clk 0:00:15]} 37. Qxc8+ {[%clk 0:00:03]}  Kf7 {[%clk 0:00:16]} 38. Qd7+ {[%clk 0:00:04]}  Kg8 {[%clk 0:00:16]} 39. Qxd6 {[%clk 0:00:04]}  Re2 {[%clk 0:00:15]} 40. Qd5+ {[%clk 0:00:05]}  Kh7 {[%clk 0:00:15]} 41. Qf3 {[%clk 0:00:04]}  Rxb2 {[%clk 0:00:15]} 42. Ne7 {[%clk 0:00:05]}  Bd4 {[%clk 0:00:14]} 43. Nxg6 {[%clk 0:00:05]}  Rxf2+ {[%clk 0:00:13]} 44. Qxf2 {[%clk 0:00:05]}  Bxf2 {[%clk 0:00:13]} 45. Kxf2 {[%clk 0:00:06]}  Kxg6 {[%clk 0:00:14]} 46. a4 {[%clk 0:00:07]} 1-0


[Site "https://www.chess.com"]

[Event "Titled Tuesday Blitz October 11 Early 2022"]
[White "Rozen, Eytan"]
[Black "Shohat, Yotam"]
[WhiteFideId "2816750"]
[BlackFideId "2813955"]
[WhiteElo "2362"]
[BlackElo "2199"]
[Result "0-1"]
[Round "03"]
[TimeControl "180+1"]
[Date "2022.10.12"]
[WhiteClock "0:00:23"]
[BlackClock "0:00:10"]

1. Nc3 {[%clk 0:02:57]}  c5 {[%clk 0:02:58]} 2. Nf3 {[%clk 0:02:57]}  Nf6 {[%clk 0:02:42]} 3. e3 {[%clk 0:02:53]}  d5 {[%clk 0:02:39]} 4. d4 {[%clk 0:02:52]}  e6 {[%clk 0:02:31]} 5. Ne5 {[%clk 0:02:49]}  Be7 {[%clk 0:02:22]} 6. Bb5+ {[%clk 0:02:43]}  Nbd7 {[%clk 0:02:18]} 7. O-O {[%clk 0:02:41]}  O-O {[%clk 0:02:18]} 8. Bxd7 {[%clk 0:02:39]}  Nxd7 {[%clk 0:02:16]} 9. Nxd7 {[%clk 0:02:36]}  Bxd7 {[%clk 0:02:16]} 10. e4 {[%clk 0:02:31]}  dxe4 {[%clk 0:02:09]} 11. dxc5 {[%clk 0:02:25]}  Bc6 {[%clk 0:02:05]} 12. Be3 {[%clk 0:02:20]}  f5 {[%clk 0:01:54]} 13. b4 {[%clk 0:02:01]}  Bf6 {[%clk 0:01:45]} 14. Ne2 {[%clk 0:01:59]}  Bxa1 {[%clk 0:01:38]} 15. Qxa1 {[%clk 0:02:00]}  Bb5 {[%clk 0:01:33]} 16. Re1 {[%clk 0:01:31]}  Bxe2 {[%clk 0:01:32]} 17. Rxe2 {[%clk 0:01:32]}  a5 {[%clk 0:01:14]} 18. Rd2 {[%clk 0:01:22]}  Qe8 {[%clk 0:01:11]} 19. Bd4 {[%clk 0:01:11]}  Rd8 {[%clk 0:00:59]} 20. a3 {[%clk 0:01:03]}  axb4 {[%clk 0:00:52]} 21. axb4 {[%clk 0:01:04]}  e5 {[%clk 0:00:49]} 22. Bc3 {[%clk 0:01:03]}  Rxd2 {[%clk 0:00:45]} 23. Bxd2 {[%clk 0:01:03]}  Qd7 {[%clk 0:00:40]} 24. Bc3 {[%clk 0:01:00]}  Rd8 {[%clk 0:00:40]} 25. Qa2+ {[%clk 0:01:00]}  Qd5 {[%clk 0:00:38]} 26. Qxd5+ {[%clk 0:00:57]}  Rxd5 {[%clk 0:00:38]} 27. f3 {[%clk 0:00:55]}  e3 {[%clk 0:00:36]} 28. Kf1 {[%clk 0:00:53]}  Kf7 {[%clk 0:00:35]} 29. Ke2 {[%clk 0:00:49]}  f4 {[%clk 0:00:35]} 30. Be1 {[%clk 0:00:47]}  g5 {[%clk 0:00:32]} 31. h4 {[%clk 0:00:43]}  h6 {[%clk 0:00:30]} 32. h5 {[%clk 0:00:38]}  Ke6 {[%clk 0:00:30]} 33. g4 {[%clk 0:00:37]}  Rd8 {[%clk 0:00:25]} 34. c4 {[%clk 0:00:32]}  Rd4 {[%clk 0:00:24]} 35. Bc3 {[%clk 0:00:26]}  Rxc4 {[%clk 0:00:23]} 36. Kd3 {[%clk 0:00:26]}  Rxc3+ {[%clk 0:00:16]} 37. Kxc3 {[%clk 0:00:27]}  Kd5 {[%clk 0:00:15]} 38. Kd3 {[%clk 0:00:26]}  Kc6 {[%clk 0:00:16]} 39. Kc2 {[%clk 0:00:23]}  Kb5 {[%clk 0:00:15]} 40. Kc3 {[%clk 0:00:23]}  e2 {[%clk 0:00:10]} 0-1


[Site "https://www.chess.com"]

[Event "Titled Tuesday Blitz October 11 Early 2022"]
[White "Ruge, Edison"]
[Black "Averjanov, Alexey"]
[WhiteFideId "4401000"]
[BlackFideId "14109867"]
[WhiteElo "2175"]
[BlackElo "2677"]
[Result "0-1"]
[Round "03"]
[TimeControl "180+1"]
[Date "2022.10.12"]
[WhiteClock "0:00:42"]
[BlackClock "0:01:27"]

1. e4 {[%clk 0:03:00]}  c6 {[%clk 0:02:58]} 2. d3 {[%clk 0:02:59]}  d5 {[%clk 0:02:56]} 3. Nd2 {[%clk 0:03:00]}  e5 {[%clk 0:02:56]} 4. Ngf3 {[%clk 0:03:00]}  Bd6 {[%clk 0:02:56]} 5. g3 {[%clk 0:03:01]}  Nf6 {[%clk 0:02:56]} 6. Bg2 {[%clk 0:03:01]}  O-O {[%clk 0:02:57]} 7. O-O {[%clk 0:03:01]}  Re8 {[%clk 0:02:57]} 8. h3 {[%clk 0:03:01]}  Nbd7 {[%clk 0:02:57]} 9. Re1 {[%clk 0:03:02]}  b6 {[%clk 0:02:58]} 10. c4 {[%clk 0:03:00]}  Bb7 {[%clk 0:02:53]} 11. Nh4 {[%clk 0:03:00]}  dxc4 {[%clk 0:02:51]} 12. Nxc4 {[%clk 0:02:59]}  Bc5 {[%clk 0:02:51]} 13. Be3 {[%clk 0:02:58]}  Qc7 {[%clk 0:02:50]} 14. Nf5 {[%clk 0:02:57]}  Rad8 {[%clk 0:02:50]} 15. Qc2 {[%clk 0:02:56]}  b5 {[%clk 0:02:47]} 16. Nd2 {[%clk 0:02:54]}  Bb6 {[%clk 0:02:43]} 17. Rac1 {[%clk 0:02:53]}  Nf8 {[%clk 0:02:38]} 18. Nb3 {[%clk 0:02:49]}  Ne6 {[%clk 0:02:37]} 19. Red1 {[%clk 0:02:43]}  Rd7 {[%clk 0:02:37]} 20. d4 {[%clk 0:02:26]}  exd4 {[%clk 0:02:38]} 21. Nbxd4 {[%clk 0:02:25]}  Nxd4 {[%clk 0:02:38]} 22. Bxd4 {[%clk 0:02:24]}  Bxd4 {[%clk 0:02:34]} 23. Rxd4 {[%clk 0:02:24]}  Rxd4 {[%clk 0:02:32]} 24. Nxd4 {[%clk 0:02:23]}  Qe5 {[%clk 0:02:27]} 25. Nxc6 {[%clk 0:02:20]}  Bxc6 {[%clk 0:02:27]} 26. Qxc6 {[%clk 0:02:19]}  Qxb2 {[%clk 0:02:28]} 27. Rc2 {[%clk 0:02:13]}  Qd4 {[%clk 0:02:22]} 28. Kh2 {[%clk 0:02:07]}  h6 {[%clk 0:02:16]} 29. Qxb5 {[%clk 0:02:05]}  Re5 {[%clk 0:02:09]} 30. Rc8+ {[%clk 0:01:58]}  Kh7 {[%clk 0:02:09]} 31. Qb8 {[%clk 0:01:59]}  Nxe4 {[%clk 0:02:05]} 32. Rh8+ {[%clk 0:01:56]}  Kg6 {[%clk 0:02:04]} 33. Qb1 {[%clk 0:01:44]}  Qxf2 {[%clk 0:01:59]} 34. Qd3 {[%clk 0:01:39]}  f5 {[%clk 0:01:52]} 35. Qa6+ {[%clk 0:01:29]}  Kh5 {[%clk 0:01:49]} 36. g4+ {[%clk 0:01:18]}  fxg4 {[%clk 0:01:42]} 37. hxg4+ {[%clk 0:01:17]}  Kxg4 {[%clk 0:01:33]} 38. Qg6+ {[%clk 0:01:16]}  Ng5 {[%clk 0:01:32]} 39. Qb1 {[%clk 0:00:45]}  Qg3+ {[%clk 0:01:27]} 40. Kh1 {[%clk 0:00:42]}  Re1+ {[%clk 0:01:27]} 0-1


[Site "https://www.chess.com"]

[Event "Titled Tuesday Blitz October 11 Early 2022"]
[White "Rustemov, Alexander"]
[Black "Di Nicolantonio, Lucas"]
[WhiteFideId "4119002"]
[BlackFideId "680460"]
[WhiteElo "2816"]
[BlackElo "2381"]
[Result "1-0"]
[Round "03"]
[TimeControl "180+1"]
[Date "2022.10.11"]
[WhiteClock "0:00:36"]
[BlackClock "0:00:08"]

1. d4 {[%clk 0:03:00]}  g6 {[%clk 0:02:54]} 2. c4 {[%clk 0:03:01]}  Bg7 {[%clk 0:02:54]} 3. Nf3 {[%clk 0:03:01]}  d6 {[%clk 0:02:55]} 4. g3 {[%clk 0:03:01]}  f5 {[%clk 0:02:54]} 5. Bg2 {[%clk 0:03:01]}  Nf6 {[%clk 0:02:55]} 6. Nc3 {[%clk 0:03:01]}  O-O {[%clk 0:02:56]} 7. O-O {[%clk 0:03:01]}  Nc6 {[%clk 0:02:56]} 8. d5 {[%clk 0:03:00]}  Ne5 {[%clk 0:02:56]} 9. Nxe5 {[%clk 0:02:59]}  dxe5 {[%clk 0:02:57]} 10. Qb3 {[%clk 0:02:59]}  Kh8 {[%clk 0:02:54]} 11. Rd1 {[%clk 0:03:00]}  h6 {[%clk 0:02:53]} 12. c5 {[%clk 0:03:00]}  a6 {[%clk 0:02:49]} 13. Bd2 {[%clk 0:02:51]}  Qe8 {[%clk 0:02:44]} 14. Be1 {[%clk 0:02:51]}  e4 {[%clk 0:02:40]} 15. f3 {[%clk 0:02:45]}  exf3 {[%clk 0:01:51]} 16. exf3 {[%clk 0:02:45]}  Rb8 {[%clk 0:01:42]} 17. Bf2 {[%clk 0:02:43]}  e6 {[%clk 0:01:42]} 18. Re1 {[%clk 0:02:37]}  Rf7 {[%clk 0:01:35]} 19. Re2 {[%clk 0:02:21]}  Re7 {[%clk 0:01:31]} 20. Rae1 {[%clk 0:02:21]}  e5 {[%clk 0:01:15]} 21. d6 {[%clk 0:02:21]}  cxd6 {[%clk 0:01:14]} 22. cxd6 {[%clk 0:02:22]}  Re6 {[%clk 0:01:07]} 23. Bb6 {[%clk 0:02:00]}  Bd7 {[%clk 0:01:06]} 24. Bc7 {[%clk 0:02:00]}  Rc8 {[%clk 0:00:59]} 25. Qxb7 {[%clk 0:01:59]}  Bc6 {[%clk 0:00:58]} 26. Qxa6 {[%clk 0:01:54]}  e4 {[%clk 0:00:56]} 27. fxe4 {[%clk 0:01:50]}  Ng4 {[%clk 0:00:56]} 28. e5 {[%clk 0:01:37]}  Bxg2 {[%clk 0:00:55]} 29. Kxg2 {[%clk 0:01:37]}  Rxc7 {[%clk 0:00:55]} 30. Qb5 {[%clk 0:01:26]}  Qa8+ {[%clk 0:00:43]} 31. Qd5 {[%clk 0:01:24]}  Qxd5+ {[%clk 0:00:41]} 32. Nxd5 {[%clk 0:01:25]}  Rd7 {[%clk 0:00:36]} 33. Nf4 {[%clk 0:01:24]}  Re8 {[%clk 0:00:28]} 34. Nxg6+ {[%clk 0:01:23]}  Kh7 {[%clk 0:00:29]} 35. Ne7 {[%clk 0:01:24]}  Nxe5 {[%clk 0:00:26]} 36. Nxf5 {[%clk 0:01:22]}  Bf6 {[%clk 0:00:22]} 37. h3 {[%clk 0:01:08]}  Kg6 {[%clk 0:00:19]} 38. g4 {[%clk 0:01:07]}  h5 {[%clk 0:00:19]} 39. b4 {[%clk 0:01:04]}  hxg4 {[%clk 0:00:19]} 40. hxg4 {[%clk 0:01:05]}  Re6 {[%clk 0:00:13]} 41. a4 {[%clk 0:00:59]}  Ra7 {[%clk 0:00:12]} 42. a5 {[%clk 0:00:59]}  Rb7 {[%clk 0:00:12]} 43. Re4 {[%clk 0:00:58]}  Kg5 {[%clk 0:00:10]} 44. Kg3 {[%clk 0:00:58]}  Rh7 {[%clk 0:00:07]} 45. b5 {[%clk 0:00:55]}  Re8 {[%clk 0:00:04]} 46. Nd4 {[%clk 0:00:41]}  Reh8 {[%clk 0:00:04]} 47. Rxe5+ {[%clk 0:00:41]}  Bxe5+ {[%clk 0:00:04]} 48. Rxe5+ {[%clk 0:00:41]}  Kf6 {[%clk 0:00:05]} 49. Re6+ {[%clk 0:00:41]}  Kf7 {[%clk 0:00:05]} 50. Re7+ {[%clk 0:00:41]}  Kf6 {[%clk 0:00:06]} 51. Rxh7 {[%clk 0:00:41]}  Rxh7 {[%clk 0:00:07]} 52. b6 {[%clk 0:00:41]}  Rd7 {[%clk 0:00:08]} 53. Nf5 {[%clk 0:00:36]} 1-0


[Site "https://www.chess.com"]

[Event "Titled Tuesday Blitz October 11 Early 2022"]
[White "Samaganova, Aleksandra"]
[Black "Demin, Vladimir"]
[WhiteFideId "13800221"]
[BlackFideId "4167457"]
[WhiteElo "1864"]
[BlackElo "2567"]
[Result "0-1"]
[Round "03"]
[TimeControl "180+1"]
[Date "2022.10.12"]
[WhiteClock "0:00:05"]
[BlackClock "0:00:03"]

1. c4 {[%clk 0:03:00]}  Nf6 {[%clk 0:02:59]} 2. Nc3 {[%clk 0:02:59]}  e6 {[%clk 0:02:55]} 3. e4 {[%clk 0:02:59]}  d5 {[%clk 0:02:55]} 4. e5 {[%clk 0:02:59]}  Ne4 {[%clk 0:02:56]} 5. d4 {[%clk 0:02:58]}  Bb4 {[%clk 0:02:53]} 6. Bd2 {[%clk 0:02:57]}  Nxd2 {[%clk 0:02:51]} 7. Qxd2 {[%clk 0:02:57]}  c5 {[%clk 0:02:52]} 8. cxd5 {[%clk 0:02:54]}  exd5 {[%clk 0:02:39]} 9. Nf3 {[%clk 0:02:53]}  Nc6 {[%clk 0:02:37]} 10. Bb5 {[%clk 0:02:51]}  O-O {[%clk 0:02:37]} 11. Bxc6 {[%clk 0:02:51]}  bxc6 {[%clk 0:02:38]} 12. O-O {[%clk 0:02:51]}  Bg4 {[%clk 0:02:36]} 13. Ne1 {[%clk 0:02:41]}  Rb8 {[%clk 0:02:25]} 14. Nc2 {[%clk 0:02:37]}  Qe7 {[%clk 0:02:10]} 15. Rfe1 {[%clk 0:02:30]}  cxd4 {[%clk 0:02:03]} 16. Nxd4 {[%clk 0:02:18]}  Bd7 {[%clk 0:02:03]} 17. Rac1 {[%clk 0:02:05]}  Rfd8 {[%clk 0:01:58]} 18. Qe2 {[%clk 0:01:20]}  Bc5 {[%clk 0:01:48]} 19. Nb3 {[%clk 0:01:17]}  Bb6 {[%clk 0:01:46]} 20. Na4 {[%clk 0:01:17]}  Qh4 {[%clk 0:01:37]} 21. Nac5 {[%clk 0:01:13]}  Bg4 {[%clk 0:01:35]} 22. Qd2 {[%clk 0:00:59]}  Re8 {[%clk 0:01:21]} 23. Rc3 {[%clk 0:00:51]}  Qh5 {[%clk 0:01:05]} 24. Qf4 {[%clk 0:00:45]}  Bc7 {[%clk 0:00:44]} 25. Nd3 {[%clk 0:00:30]}  Qg6 {[%clk 0:00:35]} 26. Rec1 {[%clk 0:00:19]}  Rb6 {[%clk 0:00:35]} 27. Nd4 {[%clk 0:00:09]}  Bd7 {[%clk 0:00:27]} 28. b3 {[%clk 0:00:06]}  h6 {[%clk 0:00:20]} 29. Nf3 {[%clk 0:00:06]}  f6 {[%clk 0:00:11]} 30. Qd4 {[%clk 0:00:05]}  fxe5 {[%clk 0:00:10]} 31. Ndxe5 {[%clk 0:00:06]}  Qd6 {[%clk 0:00:07]} 32. Nd3 {[%clk 0:00:05]}  Kh8 {[%clk 0:00:06]} 33. Qh4 {[%clk 0:00:05]}  Bf5 {[%clk 0:00:05]} 34. Nc5 {[%clk 0:00:05]}  Be4 {[%clk 0:00:04]} 35. Nxe4 {[%clk 0:00:05]}  dxe4 {[%clk 0:00:05]} 36. Ne1 {[%clk 0:00:04]}  Rf8 {[%clk 0:00:04]} 37. h3 {[%clk 0:00:04]}  Qf4 {[%clk 0:00:04]} 38. g3 {[%clk 0:00:04]}  Qxf2+ {[%clk 0:00:03]} 39. Kh1 {[%clk 0:00:04]}  Qf1+ {[%clk 0:00:03]} 40. Kh2 {[%clk 0:00:05]}  Rf2+ {[%clk 0:00:03]} 41. Ng2 {[%clk 0:00:05]}  Qxg2# {[%clk 0:00:03]} 0-1


[Site "https://www.chess.com"]

[Event "Titled Tuesday Blitz October 11 Early 2022"]
[White "Samarth, J Rao"]
[Black "Zeynalli, Rashad"]
[WhiteFideId "46652370"]
[BlackFideId "13403320"]
[WhiteElo "1564"]
[BlackElo "2125"]
[Result "1-0"]
[Round "03"]
[TimeControl "180+1"]
[Date "2022.10.12"]
[WhiteClock "0:00:09"]
[BlackClock "0:00:58"]

1. c4 {[%clk 0:03:00]}  Nf6 {[%clk 0:02:56]} 2. Nc3 {[%clk 0:03:00]}  e6 {[%clk 0:02:52]} 3. e4 {[%clk 0:02:59]}  c5 {[%clk 0:02:51]} 4. e5 {[%clk 0:02:42]}  Ng8 {[%clk 0:02:50]} 5. Nf3 {[%clk 0:02:43]}  d6 {[%clk 0:02:47]} 6. d4 {[%clk 0:02:44]}  cxd4 {[%clk 0:02:47]} 7. Qxd4 {[%clk 0:02:37]}  Nc6 {[%clk 0:02:47]} 8. Qe4 {[%clk 0:02:38]}  dxe5 {[%clk 0:02:42]} 9. Nxe5 {[%clk 0:02:38]}  Nxe5 {[%clk 0:02:40]} 10. Qxe5 {[%clk 0:02:34]}  Nf6 {[%clk 0:02:40]} 11. Bg5 {[%clk 0:02:33]}  Be7 {[%clk 0:02:39]} 12. Rd1 {[%clk 0:02:26]}  Bd7 {[%clk 0:02:30]} 13. c5 {[%clk 0:02:15]}  h6 {[%clk 0:02:19]} 14. Bxf6 {[%clk 0:02:03]}  Bxf6 {[%clk 0:02:18]} 15. Qd6 {[%clk 0:02:04]}  Qe7 {[%clk 0:02:00]} 16. Qc7 {[%clk 0:01:45]}  Bc6 {[%clk 0:01:58]} 17. Qxe7+ {[%clk 0:01:40]}  Kxe7 {[%clk 0:01:56]} 18. f3 {[%clk 0:01:33]}  Rac8 {[%clk 0:01:48]} 19. Be2 {[%clk 0:01:22]}  Rc7 {[%clk 0:01:26]} 20. Kf2 {[%clk 0:01:14]}  Rhc8 {[%clk 0:01:11]} 21. Rd2 {[%clk 0:01:01]}  g6 {[%clk 0:01:06]} 22. g3 {[%clk 0:00:45]}  Bg7 {[%clk 0:01:06]} 23. Rc1 {[%clk 0:00:44]}  f5 {[%clk 0:01:04]} 24. b4 {[%clk 0:00:40]}  Bxc3 {[%clk 0:00:59]} 25. Rxc3 {[%clk 0:00:39]}  Bd5 {[%clk 0:01:00]} 26. a3 {[%clk 0:00:30]}  b6 {[%clk 0:00:58]} 27. Rdc2 {[%clk 0:00:24]}  bxc5 {[%clk 0:00:57]} 28. Ba6 {[%clk 0:00:23]}  Rb8 {[%clk 0:00:52]} 29. Rxc5 {[%clk 0:00:23]}  Rxc5 {[%clk 0:00:52]} 30. Rxc5 {[%clk 0:00:24]}  Kd6 {[%clk 0:00:52]} 31. f4 {[%clk 0:00:21]}  e5 {[%clk 0:00:51]} 32. fxe5+ {[%clk 0:00:21]}  Kxe5 {[%clk 0:00:50]} 33. Bc4 {[%clk 0:00:20]}  Rd8 {[%clk 0:00:51]} 34. Ke3 {[%clk 0:00:19]}  g5 {[%clk 0:00:48]} 35. h4 {[%clk 0:00:13]}  Rd7 {[%clk 0:00:47]} 36. h5 {[%clk 0:00:06]}  f4+ {[%clk 0:00:47]} 37. gxf4+ {[%clk 0:00:07]}  gxf4+ {[%clk 0:00:48]} 38. Kf2 {[%clk 0:00:07]}  Rd6 {[%clk 0:00:49]} 39. Bxd5 {[%clk 0:00:04]}  Rxd5 {[%clk 0:00:49]} 40. Rxd5+ {[%clk 0:00:03]}  Kxd5 {[%clk 0:00:50]} 41. Kf3 {[%clk 0:00:04]}  Kc4 {[%clk 0:00:51]} 42. Kxf4 {[%clk 0:00:04]}  Kb3 {[%clk 0:00:52]} 43. Kf5 {[%clk 0:00:04]}  Kxa3 {[%clk 0:00:53]} 44. Kg6 {[%clk 0:00:05]}  Kxb4 {[%clk 0:00:53]} 45. Kxh6 {[%clk 0:00:06]}  a5 {[%clk 0:00:54]} 46. Kg6 {[%clk 0:00:07]}  a4 {[%clk 0:00:54]} 47. h6 {[%clk 0:00:08]}  a3 {[%clk 0:00:55]} 48. h7 {[%clk 0:00:08]}  Kb3 {[%clk 0:00:56]} 49. h8=Q {[%clk 0:00:09]}  a2 {[%clk 0:00:57]} 50. Qa1 {[%clk 0:00:09]}  Ka3 {[%clk 0:00:57]} 51. Kf5 {[%clk 0:00:10]}  Kb3 {[%clk 0:00:58]} 52. Ke4 {[%clk 0:00:10]}  Ka3 {[%clk 0:00:58]} 53. Kd3 {[%clk 0:00:11]}  Kb3 {[%clk 0:00:59]} 54. Qc3+ {[%clk 0:00:11]}  Ka4 {[%clk 0:00:59]} 55. Qb2 {[%clk 0:00:10]}  Ka5 {[%clk 0:00:58]} 56. Qxa2+ {[%clk 0:00:10]}  Kb5 {[%clk 0:00:58]} 57. Qc4+ {[%clk 0:00:09]} 1-0


[Site "https://www.chess.com"]

[Event "Titled Tuesday Blitz October 11 Early 2022"]
[White "Sanchez, Robert"]
[Black "Maltsevskaya, Aleksandra"]
[WhiteFideId "2034360"]
[BlackFideId "24174041"]
[WhiteElo "2401"]
[BlackElo "2289"]
[Result "1-0"]
[Round "03"]
[TimeControl "180+1"]
[Date "2022.10.12"]
[WhiteClock "0:00:29"]
[BlackClock "0:00:25"]

1. e4 {[%clk 0:03:00]}  d5 {[%clk 0:02:56]} 2. exd5 {[%clk 0:03:00]}  Qxd5 {[%clk 0:02:57]} 3. Nc3 {[%clk 0:03:00]}  Qa5 {[%clk 0:02:55]} 4. Nf3 {[%clk 0:03:00]}  Nf6 {[%clk 0:02:53]} 5. h3 {[%clk 0:02:59]}  e5 {[%clk 0:02:51]} 6. Bc4 {[%clk 0:02:56]}  Be7 {[%clk 0:02:49]} 7. O-O {[%clk 0:02:54]}  O-O {[%clk 0:02:49]} 8. d4 {[%clk 0:02:54]}  exd4 {[%clk 0:02:48]} 9. Qxd4 {[%clk 0:02:54]}  Nc6 {[%clk 0:02:47]} 10. Qf4 {[%clk 0:02:48]}  Nh5 {[%clk 0:02:38]} 11. Qd2 {[%clk 0:02:34]}  Rd8 {[%clk 0:02:29]} 12. Nd5 {[%clk 0:02:23]}  Be6 {[%clk 0:02:18]} 13. Qxa5 {[%clk 0:02:19]}  Nxa5 {[%clk 0:02:04]} 14. Nxe7+ {[%clk 0:02:18]}  Kf8 {[%clk 0:02:04]} 15. Bxe6 {[%clk 0:02:13]}  fxe6 {[%clk 0:02:05]} 16. Bd2 {[%clk 0:01:43]}  Nc4 {[%clk 0:01:58]} 17. Bb4 {[%clk 0:01:42]}  a5 {[%clk 0:01:56]} 18. Nc6+ {[%clk 0:01:29]}  axb4 {[%clk 0:01:55]} 19. Nxd8 {[%clk 0:01:30]}  Rxd8 {[%clk 0:01:55]} 20. Rfd1 {[%clk 0:01:25]}  Ra8 {[%clk 0:01:51]} 21. Rd7 {[%clk 0:01:21]}  Nxb2 {[%clk 0:01:43]} 22. Rxc7 {[%clk 0:01:19]}  b5 {[%clk 0:01:42]} 23. Ng5 {[%clk 0:01:16]}  Nf4 {[%clk 0:01:42]} 24. Re1 {[%clk 0:01:06]}  Kg8 {[%clk 0:01:22]} 25. g3 {[%clk 0:00:49]}  Nd5 {[%clk 0:01:21]} 26. Rb7 {[%clk 0:00:49]}  Nc4 {[%clk 0:01:05]} 27. Rxe6 {[%clk 0:00:44]}  h6 {[%clk 0:00:45]} 28. Ne4 {[%clk 0:00:38]}  Rxa2 {[%clk 0:00:40]} 29. Rxb5 {[%clk 0:00:38]}  Nc7 {[%clk 0:00:32]} 30. Rb8+ {[%clk 0:00:36]}  Kf7 {[%clk 0:00:31]} 31. Rc6 {[%clk 0:00:34]}  Na6 {[%clk 0:00:25]} 32. Rb7+ {[%clk 0:00:29]} 1-0


[Site "https://www.chess.com"]